[Event "Titled Tuesday Blitz May 2 Late 2023"]
[White "Petrovic, Aleksa"]
[Black "Bilych, Olexiy"]
[WhiteFideId "967629"]
[BlackFideId "14156504"]
[WhiteElo "2309"]
[BlackElo "2320"]
[Result "0-1"]
[Round "03"]
[TimeControl "180+2"]
[Date "2023.05.02"]
[WhiteClock "0:00:06"]
[BlackClock "0:00:22"]

1. d4 {[%clk 0:03:00]}  d5 {[%clk 0:02:59]} 2. c4 {[%clk 0:03:00]}  c6 {[%clk 0:02:58]} 3. Nf3 {[%clk 0:03:00]}  Nf6 {[%clk 0:02:59]} 4. Nc3 {[%clk 0:03:00]}  e6 {[%clk 0:02:58]} 5. e3 {[%clk 0:03:00]}  Nbd7 {[%clk 0:02:57]} 6. Qc2 {[%clk 0:02:59]}  Bd6 {[%clk 0:02:57]} 7. Bd3 {[%clk 0:02:59]}  dxc4 {[%clk 0:02:56]} 8. Bxc4 {[%clk 0:02:58]}  b5 {[%clk 0:02:57]} 9. Be2 {[%clk 0:02:58]}  Bb7 {[%clk 0:02:57]} 10. O-O {[%clk 0:02:58]}  O-O {[%clk 0:02:57]} 11. e4 {[%clk 0:02:58]}  e5 {[%clk 0:02:54]} 12. dxe5 {[%clk 0:02:59]}  Nxe5 {[%clk 0:02:54]} 13. Nd4 {[%clk 0:02:59]}  Neg4 {[%clk 0:02:37]} 14. g3 {[%clk 0:02:58]}  Bc5 {[%clk 0:02:32]} 15. Nf5 {[%clk 0:02:32]}  Re8 {[%clk 0:02:32]} 16. h3 {[%clk 0:02:18]}  Nxf2 {[%clk 0:02:31]} 17. Rxf2 {[%clk 0:02:15]}  Bxf2+ {[%clk 0:02:32]} 18. Kxf2 {[%clk 0:02:15]}  b4 {[%clk 0:02:32]} 19. Nd1 {[%clk 0:02:02]}  c5 {[%clk 0:02:14]} 20. Nde3 {[%clk 0:01:45]}  Nxe4+ {[%clk 0:01:50]} 21. Kg1 {[%clk 0:01:42]}  Qf6 {[%clk 0:01:48]} 22. Bd2 {[%clk 0:01:23]}  Nxd2 {[%clk 0:01:34]} 23. Qxd2 {[%clk 0:01:20]}  Rad8 {[%clk 0:01:35]} 24. Qe1 {[%clk 0:01:11]}  Qxb2 {[%clk 0:01:19]} 25. Rd1 {[%clk 0:01:07]}  Rxd1 {[%clk 0:01:14]} 26. Qxd1 {[%clk 0:01:08]}  Qe5 {[%clk 0:01:03]} 27. Bf3 {[%clk 0:00:54]}  Bxf3 {[%clk 0:00:54]} 28. Qxf3 {[%clk 0:00:55]}  c4 {[%clk 0:00:52]} 29. Qc6 {[%clk 0:00:51]}  c3 {[%clk 0:00:49]} 30. Kf2 {[%clk 0:00:21]}  a5 {[%clk 0:00:43]} 31. Qc4 {[%clk 0:00:16]}  h5 {[%clk 0:00:39]} 32. g4 {[%clk 0:00:14]}  Qh2+ {[%clk 0:00:37]} 33. Kf3 {[%clk 0:00:12]}  Qxh3+ {[%clk 0:00:37]} 34. Kf4 {[%clk 0:00:12]}  hxg4 {[%clk 0:00:33]} 35. Nxg4 {[%clk 0:00:11]}  Qh1 {[%clk 0:00:23]} 36. Nd6 {[%clk 0:00:07]}  Qc1+ {[%clk 0:00:23]} 37. Kf3 {[%clk 0:00:06]}  Qd1+ {[%clk 0:00:22]} 0-1


[Site "https://www.chess.com"]

[Event "Titled Tuesday Blitz May 2 Late 2023"]
[White "Averjanov, Alexey"]
[Black "Marczuk, Dominik"]
[WhiteFideId "14109867"]
[BlackFideId "1111264"]
[WhiteElo "2399"]
[BlackElo "2174"]
[Result "1-0"]
[Round "03"]
[TimeControl "180+2"]
[Date "2023.05.02"]
[WhiteClock "0:01:25"]
[BlackClock "0:00:03"]

1. d4 {[%clk 0:03:00]}  Nf6 {[%clk 0:02:56]} 2. c4 {[%clk 0:03:00]}  g6 {[%clk 0:02:56]} 3. Nc3 {[%clk 0:03:00]}  Bg7 {[%clk 0:02:57]} 4. e4 {[%clk 0:03:00]}  d6 {[%clk 0:02:57]} 5. Be2 {[%clk 0:03:00]}  O-O {[%clk 0:02:57]} 6. Nf3 {[%clk 0:03:01]}  e5 {[%clk 0:02:57]} 7. O-O {[%clk 0:03:01]}  Nc6 {[%clk 0:02:58]} 8. d5 {[%clk 0:03:01]}  Ne7 {[%clk 0:02:59]} 9. Ne1 {[%clk 0:03:02]}  Nd7 {[%clk 0:02:59]} 10. Be3 {[%clk 0:03:02]}  f5 {[%clk 0:03:00]} 11. f3 {[%clk 0:03:03]}  f4 {[%clk 0:03:00]} 12. Bf2 {[%clk 0:03:03]}  g5 {[%clk 0:03:00]} 13. a4 {[%clk 0:03:04]}  Ng6 {[%clk 0:02:59]} 14. a5 {[%clk 0:03:03]}  Nf6 {[%clk 0:02:52]} 15. c5 {[%clk 0:03:03]}  h5 {[%clk 0:02:49]} 16. cxd6 {[%clk 0:03:03]}  cxd6 {[%clk 0:02:50]} 17. Nb5 {[%clk 0:03:04]}  g4 {[%clk 0:02:45]} 18. Bxa7 {[%clk 0:03:04]}  g3 {[%clk 0:02:34]} 19. Bb6 {[%clk 0:03:03]}  Qe7 {[%clk 0:02:33]} 20. Nc7 {[%clk 0:03:03]}  gxh2+ {[%clk 0:02:30]} 21. Kxh2 {[%clk 0:03:04]}  Rb8 {[%clk 0:01:53]} 22. Rh1 {[%clk 0:03:02]}  h4 {[%clk 0:01:47]} 23. Kg1 {[%clk 0:03:02]}  Nh5 {[%clk 0:01:46]} 24. Rh2 {[%clk 0:03:00]}  Bd7 {[%clk 0:01:43]} 25. Rc1 {[%clk 0:02:57]}  Ng3 {[%clk 0:01:41]} 26. Ne6 {[%clk 0:02:53]}  Rfc8 {[%clk 0:01:35]} 27. Bc4 {[%clk 0:02:49]}  Bf6 {[%clk 0:01:27]} 28. Nd3 {[%clk 0:02:49]}  Nf8 {[%clk 0:01:20]} 29. Nb4 {[%clk 0:02:26]}  Nxe6 {[%clk 0:01:08]} 30. dxe6 {[%clk 0:02:26]}  Bxe6 {[%clk 0:01:09]} 31. Nd5 {[%clk 0:02:19]}  Bxd5 {[%clk 0:01:04]} 32. Qxd5+ {[%clk 0:02:14]}  Kg7 {[%clk 0:01:04]} 33. Kf2 {[%clk 0:02:09]}  Rc6 {[%clk 0:01:01]} 34. b3 {[%clk 0:02:04]}  Rbc8 {[%clk 0:00:55]} 35. Rd1 {[%clk 0:02:04]}  Qd7 {[%clk 0:00:35]} 36. Rd2 {[%clk 0:02:00]}  Qe7 {[%clk 0:00:35]} 37. Rd1 {[%clk 0:01:58]}  Qd7 {[%clk 0:00:35]} 38. Rd2 {[%clk 0:01:54]}  Qe7 {[%clk 0:00:35]} 39. Kg1 {[%clk 0:01:54]}  Qd7 {[%clk 0:00:34]} 40. Rh3 {[%clk 0:01:48]}  Qe7 {[%clk 0:00:34]} 41. Kf2 {[%clk 0:01:48]}  Qd7 {[%clk 0:00:35]} 42. Ke1 {[%clk 0:01:48]}  Qe7 {[%clk 0:00:35]} 43. Kd1 {[%clk 0:01:47]}  Qd7 {[%clk 0:00:34]} 44. Kc2 {[%clk 0:01:47]}  Rxc4+ {[%clk 0:00:30]} 45. bxc4 {[%clk 0:01:47]}  Qa4+ {[%clk 0:00:30]} 46. Kb1 {[%clk 0:01:40]}  Rxc4 {[%clk 0:00:28]} 47. Rb2 {[%clk 0:01:35]}  Ne2 {[%clk 0:00:12]} 48. Rxe2 {[%clk 0:01:30]}  Qb4+ {[%clk 0:00:04]} 49. Rb2 {[%clk 0:01:27]}  Qe1+ {[%clk 0:00:03]} 50. Ka2 {[%clk 0:01:28]}  Rb4 {[%clk 0:00:03]} 51. Rxb4 {[%clk 0:01:25]} 1-0


[Site "https://www.chess.com"]

[Event "Titled Tuesday Blitz May 2 Late 2023"]
[White "Pantev, Veselin"]
[Black "Gurevich, Dmitry"]
[WhiteFideId "2901390"]
[BlackFideId "2000407"]
[WhiteElo "2427"]
[BlackElo "2506"]
[Result "1-0"]
[Round "03"]
[TimeControl "180+2"]
[Date "2023.05.02"]
[WhiteClock "0:00:13"]
[BlackClock "0:00:01"]

1. d4 {[%clk 0:02:54]}  Nf6 {[%clk 0:02:59]} 2. Nf3 {[%clk 0:02:54]}  e6 {[%clk 0:02:59]} 3. Bf4 {[%clk 0:02:55]}  b6 {[%clk 0:02:56]} 4. e3 {[%clk 0:02:55]}  Bb7 {[%clk 0:02:57]} 5. Be2 {[%clk 0:02:55]}  Be7 {[%clk 0:02:55]} 6. h3 {[%clk 0:02:56]}  O-O {[%clk 0:02:53]} 7. O-O {[%clk 0:02:56]}  c5 {[%clk 0:02:54]} 8. c3 {[%clk 0:02:56]}  cxd4 {[%clk 0:02:51]} 9. cxd4 {[%clk 0:02:55]}  d6 {[%clk 0:02:51]} 10. Nc3 {[%clk 0:02:55]}  a6 {[%clk 0:02:48]} 11. a4 {[%clk 0:02:53]}  Nbd7 {[%clk 0:02:48]} 12. Rc1 {[%clk 0:02:51]}  Rc8 {[%clk 0:02:47]} 13. Bh2 {[%clk 0:02:51]}  Rc7 {[%clk 0:02:43]} 14. Qb3 {[%clk 0:02:49]}  Qa8 {[%clk 0:02:41]} 15. Qa3 {[%clk 0:02:48]}  Ne8 {[%clk 0:02:28]} 16. Rfd1 {[%clk 0:02:42]}  Ndf6 {[%clk 0:02:27]} 17. Qb3 {[%clk 0:02:29]}  Qa7 {[%clk 0:02:26]} 18. Bf4 {[%clk 0:02:20]}  h6 {[%clk 0:02:22]} 19. Bg3 {[%clk 0:02:19]}  Nd5 {[%clk 0:02:15]} 20. Nd2 {[%clk 0:02:13]}  Nef6 {[%clk 0:02:06]} 21. Na2 {[%clk 0:02:00]}  Rfc8 {[%clk 0:02:02]} 22. Rxc7 {[%clk 0:02:00]}  Nxc7 {[%clk 0:01:59]} 23. e4 {[%clk 0:01:59]}  Nxe4 {[%clk 0:01:55]} 24. Nxe4 {[%clk 0:01:58]}  Bxe4 {[%clk 0:01:54]} 25. Nc3 {[%clk 0:01:58]}  Bb7 {[%clk 0:01:50]} 26. Bc4 {[%clk 0:01:58]}  d5 {[%clk 0:01:23]} 27. Bd3 {[%clk 0:01:57]}  Ne8 {[%clk 0:01:22]} 28. Bb1 {[%clk 0:01:44]}  Bd6 {[%clk 0:01:21]} 29. Be5 {[%clk 0:01:41]}  Bxe5 {[%clk 0:01:18]} 30. dxe5 {[%clk 0:01:41]}  Bc6 {[%clk 0:01:13]} 31. Qc2 {[%clk 0:01:39]}  g6 {[%clk 0:01:13]} 32. Qd2 {[%clk 0:01:39]}  Kg7 {[%clk 0:01:03]} 33. Qe3 {[%clk 0:01:36]}  Qb7 {[%clk 0:00:57]} 34. Rd4 {[%clk 0:01:33]}  Qe7 {[%clk 0:00:52]} 35. h4 {[%clk 0:01:29]}  b5 {[%clk 0:00:42]} 36. axb5 {[%clk 0:01:28]}  Bxb5 {[%clk 0:00:42]} 37. Nxb5 {[%clk 0:01:21]}  axb5 {[%clk 0:00:41]} 38. Bd3 {[%clk 0:01:20]}  b4 {[%clk 0:00:37]} 39. Qf4 {[%clk 0:01:20]}  f5 {[%clk 0:00:20]} 40. exf6+ {[%clk 0:01:15]}  Qxf6 {[%clk 0:00:20]} 41. Rxb4 {[%clk 0:01:15]}  Qxf4 {[%clk 0:00:19]} 42. Rxf4 {[%clk 0:01:14]}  e5 {[%clk 0:00:19]} 43. Rb4 {[%clk 0:01:13]}  e4 {[%clk 0:00:19]} 44. Be2 {[%clk 0:01:12]}  Nd6 {[%clk 0:00:16]} 45. Rd4 {[%clk 0:01:06]}  Rc2 {[%clk 0:00:13]} 46. Rxd5 {[%clk 0:01:04]}  Rxe2 {[%clk 0:00:13]} 47. Rxd6 {[%clk 0:01:04]}  Rxb2 {[%clk 0:00:13]} 48. Rd4 {[%clk 0:01:00]}  e3 {[%clk 0:00:11]} 49. fxe3 {[%clk 0:01:00]}  h5 {[%clk 0:00:11]} 50. Rf4 {[%clk 0:00:58]}  Rb5 {[%clk 0:00:10]} 51. Kf2 {[%clk 0:00:57]}  Rb2+ {[%clk 0:00:09]} 52. Kf3 {[%clk 0:00:57]}  Ra2 {[%clk 0:00:10]} 53. g3 {[%clk 0:00:52]}  Rb2 {[%clk 0:00:09]} 54. g4 {[%clk 0:00:50]}  hxg4+ {[%clk 0:00:09]} 55. Rxg4 {[%clk 0:00:50]}  Kf6 {[%clk 0:00:09]} 56. Ra4 {[%clk 0:00:50]}  Kf5 {[%clk 0:00:08]} 57. Ra5+ {[%clk 0:00:48]}  Kf6 {[%clk 0:00:07]} 58. Kf4 {[%clk 0:00:48]}  Rb4+ {[%clk 0:00:06]} 59. e4 {[%clk 0:00:48]}  Rb1 {[%clk 0:00:07]} 60. Ra6+ {[%clk 0:00:48]}  Kf7 {[%clk 0:00:07]} 61. Ra5 {[%clk 0:00:41]}  Rh1 {[%clk 0:00:06]} 62. Kg4 {[%clk 0:00:40]}  Rg1+ {[%clk 0:00:06]} 63. Kf3 {[%clk 0:00:39]}  Rh1 {[%clk 0:00:05]} 64. Kg3 {[%clk 0:00:40]}  Rg1+ {[%clk 0:00:05]} 65. Kf3 {[%clk 0:00:35]}  Rh1 {[%clk 0:00:04]} 66. Ra7+ {[%clk 0:00:34]}  Kf6 {[%clk 0:00:04]} 67. Rh7 {[%clk 0:00:34]}  Rh3+ {[%clk 0:00:03]} 68. Kf4 {[%clk 0:00:31]}  Rh1 {[%clk 0:00:03]} 69. e5+ {[%clk 0:00:31]}  Ke6 {[%clk 0:00:03]} 70. Kg5 {[%clk 0:00:28]}  Rf1 {[%clk 0:00:04]} 71. Kxg6 {[%clk 0:00:24]}  Rg1+ {[%clk 0:00:03]} 72. Kh5 {[%clk 0:00:23]}  Kxe5 {[%clk 0:00:03]} 73. Rf7 {[%clk 0:00:24]}  Ke6 {[%clk 0:00:03]} 74. Rf3 {[%clk 0:00:24]}  Rg2 {[%clk 0:00:03]} 75. Kh6 {[%clk 0:00:23]}  Ke7 {[%clk 0:00:03]} 76. h5 {[%clk 0:00:23]}  Rg1 {[%clk 0:00:03]} 77. Kh7 {[%clk 0:00:21]}  Rg2 {[%clk 0:00:04]} 78. Rf5 {[%clk 0:00:19]}  Rg1 {[%clk 0:00:04]} 79. Ra5 {[%clk 0:00:19]}  Rg2 {[%clk 0:00:03]} 80. Ra6 {[%clk 0:00:19]}  Kf7 {[%clk 0:00:02]} 81. Rg6 {[%clk 0:00:17]}  Rh2 {[%clk 0:00:01]} 82. Kh6 {[%clk 0:00:16]}  Rh1 {[%clk 0:00:01]} 83. Rg3 {[%clk 0:00:14]}  Rh2 {[%clk 0:00:01]} 84. Rg5 {[%clk 0:00:14]}  Rh1 {[%clk 0:00:01]} 85. Kh7 {[%clk 0:00:14]}  Rh2 {[%clk 0:00:01]} 86. Rf5+ {[%clk 0:00:13]} 1-0


[Site "https://www.chess.com"]

[Event "Titled Tuesday Blitz May 2 Late 2023"]
[White "Olsson, William"]
[Black "Lenaerts, Lennert"]
[WhiteFideId "1741721"]
[BlackFideId "211435"]
[WhiteElo "2197"]
[BlackElo "2334"]
[Result "1-0"]
[Round "03"]
[TimeControl "180+2"]
[Date "2023.05.02"]
[WhiteClock "0:00:16"]
[BlackClock "0:01:03"]

1. c4 {[%clk 0:02:58]}  e5 {[%clk 0:02:59]} 2. g3 {[%clk 0:02:57]}  Nf6 {[%clk 0:02:59]} 3. Bg2 {[%clk 0:02:57]}  Bc5 {[%clk 0:02:59]} 4. Nc3 {[%clk 0:02:56]}  c6 {[%clk 0:03:00]} 5. Nf3 {[%clk 0:02:53]}  e4 {[%clk 0:03:00]} 6. Nh4 {[%clk 0:02:46]}  d5 {[%clk 0:02:59]} 7. d4 {[%clk 0:02:46]}  Be7 {[%clk 0:02:54]} 8. O-O {[%clk 0:02:41]}  h6 {[%clk 0:02:54]} 9. Bh1 {[%clk 0:02:25]}  g5 {[%clk 0:02:52]} 10. Ng2 {[%clk 0:02:25]}  dxc4 {[%clk 0:02:32]} 11. Ne3 {[%clk 0:02:21]}  Be6 {[%clk 0:02:22]} 12. Nxe4 {[%clk 0:02:17]}  Nxe4 {[%clk 0:02:22]} 13. Bxe4 {[%clk 0:02:17]}  Nd7 {[%clk 0:02:17]} 14. d5 {[%clk 0:02:12]}  cxd5 {[%clk 0:02:17]} 15. Nxd5 {[%clk 0:02:12]}  Nf6 {[%clk 0:02:14]} 16. Nxf6+ {[%clk 0:02:08]}  Bxf6 {[%clk 0:02:12]} 17. Bxb7 {[%clk 0:02:08]}  Qxd1 {[%clk 0:02:09]} 18. Rxd1 {[%clk 0:02:08]}  Rb8 {[%clk 0:02:10]} 19. Bc6+ {[%clk 0:02:08]}  Ke7 {[%clk 0:02:10]} 20. Be3 {[%clk 0:01:52]}  Bxb2 {[%clk 0:02:07]} 21. Bc5+ {[%clk 0:01:51]}  Kf6 {[%clk 0:02:06]} 22. Rab1 {[%clk 0:01:51]}  c3 {[%clk 0:02:03]} 23. Bd4+ {[%clk 0:01:50]}  Kg6 {[%clk 0:01:59]} 24. Bxh8 {[%clk 0:01:45]}  Rxh8 {[%clk 0:01:58]} 25. Be4+ {[%clk 0:01:06]}  f5 {[%clk 0:01:57]} 26. Rd6 {[%clk 0:01:01]}  Kf7 {[%clk 0:01:21]} 27. Bc2 {[%clk 0:01:00]}  Bxa2 {[%clk 0:01:18]} 28. Rbd1 {[%clk 0:01:00]}  Be6 {[%clk 0:01:14]} 29. Ra6 {[%clk 0:00:47]}  Rb8 {[%clk 0:01:13]} 30. Rxa7+ {[%clk 0:00:45]}  Kf6 {[%clk 0:01:14]} 31. Ra6 {[%clk 0:00:38]}  Ke7 {[%clk 0:01:05]} 32. Ra7+ {[%clk 0:00:32]}  Kf6 {[%clk 0:01:05]} 33. Rd6 {[%clk 0:00:29]}  Ke5 {[%clk 0:01:05]} 34. Rc6 {[%clk 0:00:18]}  Bb3 {[%clk 0:01:03]} 35. Ra5+ {[%clk 0:00:16]}  Kd4 {[%clk 0:01:03]} 36. e3# {[%clk 0:00:16]} 1-0


[Site "https://www.chess.com"]

[Event "Titled Tuesday Blitz May 2 Late 2023"]
[White "Martins, Bruno Andre Leite"]
[Black "Sanhueza, Cristian"]
[WhiteFideId "1942255"]
[BlackFideId "116815"]
[WhiteElo "2240"]
[BlackElo "2219"]
[Result "1-0"]
[Round "03"]
[TimeControl "180+2"]
[Date "2023.05.02"]
[WhiteClock "0:01:15"]
[BlackClock "0:01:18"]

1. d4 {[%clk 0:02:35]}  Nf6 {[%clk 0:02:39]} 2. c4 {[%clk 0:02:36]}  g6 {[%clk 0:02:38]} 3. Nc3 {[%clk 0:02:34]}  Bg7 {[%clk 0:02:39]} 4. h4 {[%clk 0:02:30]}  c5 {[%clk 0:02:34]} 5. d5 {[%clk 0:02:25]}  d6 {[%clk 0:02:29]} 6. e4 {[%clk 0:02:20]}  b5 {[%clk 0:02:25]} 7. cxb5 {[%clk 0:02:18]}  a6 {[%clk 0:02:22]} 8. a4 {[%clk 0:02:17]}  Qa5 {[%clk 0:02:21]} 9. Bd2 {[%clk 0:02:10]}  O-O {[%clk 0:02:20]} 10. Ra3 {[%clk 0:02:07]}  e6 {[%clk 0:02:11]} 11. h5 {[%clk 0:02:05]}  exd5 {[%clk 0:02:09]} 12. Nxd5 {[%clk 0:02:05]}  Qd8 {[%clk 0:02:06]} 13. Nxf6+ {[%clk 0:02:04]}  Bxf6 {[%clk 0:02:04]} 14. hxg6 {[%clk 0:01:41]}  hxg6 {[%clk 0:02:05]} 15. Bc4 {[%clk 0:01:40]}  Kg7 {[%clk 0:01:42]} 16. Bh6+ {[%clk 0:01:38]}  Kg8 {[%clk 0:01:41]} 17. Bxf8 {[%clk 0:01:29]}  Qxf8 {[%clk 0:01:40]} 18. Qf3 {[%clk 0:01:18]}  Bxb2 {[%clk 0:01:29]} 19. Qg3 {[%clk 0:01:15]}  Bxa3 {[%clk 0:01:18]} 20. Qh4 {[%clk 0:01:15]} 1-0


[Site "https://www.chess.com"]

[Event "Titled Tuesday Blitz May 2 Late 2023"]
[White "Feng, Eric"]
[Black "Pourkashiyan, Atousa"]
[WhiteFideId "30952590"]
[BlackFideId "12502014"]
[WhiteElo "1785"]
[BlackElo "2228"]
[Result "1/2-1/2"]
[Round "03"]
[TimeControl "180+2"]
[Date "2023.05.02"]
[WhiteClock "0:01:19"]
[BlackClock "0:00:07"]

1. d4 {[%clk 0:03:00]}  Nf6 {[%clk 0:02:55]} 2. c4 {[%clk 0:03:00]}  e6 {[%clk 0:02:55]} 3. Nf3 {[%clk 0:03:01]}  d5 {[%clk 0:02:53]} 4. g3 {[%clk 0:03:01]}  Be7 {[%clk 0:02:53]} 5. Bg2 {[%clk 0:03:01]}  O-O {[%clk 0:02:53]} 6. O-O {[%clk 0:03:02]}  dxc4 {[%clk 0:02:53]} 7. Qc2 {[%clk 0:03:02]}  a6 {[%clk 0:02:53]} 8. a4 {[%clk 0:03:01]}  Bd7 {[%clk 0:02:46]} 9. Nbd2 {[%clk 0:03:00]}  c5 {[%clk 0:02:28]} 10. dxc5 {[%clk 0:02:58]}  Bxc5 {[%clk 0:02:22]} 11. Nxc4 {[%clk 0:02:58]}  Nc6 {[%clk 0:02:20]} 12. Bg5 {[%clk 0:02:58]}  Be7 {[%clk 0:02:19]} 13. Rfd1 {[%clk 0:02:57]}  Rc8 {[%clk 0:02:15]} 14. Qb3 {[%clk 0:02:57]}  Nd5 {[%clk 0:02:05]} 15. Bxe7 {[%clk 0:02:57]}  Qxe7 {[%clk 0:01:46]} 16. Nfe5 {[%clk 0:02:56]}  Nxe5 {[%clk 0:01:38]} 17. Nxe5 {[%clk 0:02:57]}  Bc6 {[%clk 0:01:34]} 18. Nxc6 {[%clk 0:02:57]}  bxc6 {[%clk 0:01:34]} 19. Rac1 {[%clk 0:02:57]}  a5 {[%clk 0:01:29]} 20. Qc4 {[%clk 0:02:52]}  Qb4 {[%clk 0:01:24]} 21. Bxd5 {[%clk 0:02:47]}  exd5 {[%clk 0:01:17]} 22. Qxb4 {[%clk 0:02:48]}  axb4 {[%clk 0:01:17]} 23. Rc5 {[%clk 0:02:46]}  Rfe8 {[%clk 0:01:10]} 24. e3 {[%clk 0:02:47]}  b3 {[%clk 0:01:10]} 25. Rd3 {[%clk 0:02:46]}  g6 {[%clk 0:00:53]} 26. Rxb3 {[%clk 0:02:45]}  Re4 {[%clk 0:00:51]} 27. a5 {[%clk 0:02:45]}  Ra4 {[%clk 0:00:49]} 28. Rbc3 {[%clk 0:02:44]}  Rb8 {[%clk 0:00:40]} 29. b3 {[%clk 0:02:43]}  Ra3 {[%clk 0:00:37]} 30. Rxc6 {[%clk 0:02:43]}  Rbxb3 {[%clk 0:00:32]} 31. R3c5 {[%clk 0:02:37]}  Rb1+ {[%clk 0:00:30]} 32. Kg2 {[%clk 0:02:37]}  Rb2 {[%clk 0:00:24]} 33. Rxd5 {[%clk 0:02:35]}  Raa2 {[%clk 0:00:24]} 34. Rf6 {[%clk 0:02:35]}  Kg7 {[%clk 0:00:24]} 35. Rf4 {[%clk 0:02:35]}  Rb7 {[%clk 0:00:15]} 36. Rc4 {[%clk 0:02:29]}  Rbb2 {[%clk 0:00:13]} 37. Rf4 {[%clk 0:02:26]}  Rb7 {[%clk 0:00:13]} 38. h4 {[%clk 0:02:19]}  Ra7 {[%clk 0:00:14]} 39. g4 {[%clk 0:02:20]}  R2xa5 {[%clk 0:00:13]} 40. Rdd4 {[%clk 0:02:20]}  h6 {[%clk 0:00:11]} 41. Kg3 {[%clk 0:02:20]}  Ra1 {[%clk 0:00:10]} 42. Rc4 {[%clk 0:02:14]}  Rg1+ {[%clk 0:00:10]} 43. Kh2 {[%clk 0:02:13]}  Rf1 {[%clk 0:00:11]} 44. Kg2 {[%clk 0:02:14]}  Rb1 {[%clk 0:00:10]} 45. Rc6 {[%clk 0:02:10]}  Rb5 {[%clk 0:00:10]} 46. Rcc4 {[%clk 0:02:09]}  Rd5 {[%clk 0:00:10]} 47. Rcd4 {[%clk 0:02:09]}  Rxd4 {[%clk 0:00:10]} 48. Rxd4 {[%clk 0:02:09]}  Ra5 {[%clk 0:00:10]} 49. Kg3 {[%clk 0:02:09]}  g5 {[%clk 0:00:10]} 50. hxg5 {[%clk 0:02:09]}  hxg5 {[%clk 0:00:10]} 51. Kf3 {[%clk 0:02:10]}  Kg6 {[%clk 0:00:10]} 52. Ke4 {[%clk 0:02:10]}  f6 {[%clk 0:00:11]} 53. f4 {[%clk 0:02:07]}  gxf4 {[%clk 0:00:11]} 54. exf4 {[%clk 0:02:08]}  Ra1 {[%clk 0:00:10]} 55. Kf3 {[%clk 0:02:04]}  Rf1+ {[%clk 0:00:10]} 56. Kg2 {[%clk 0:02:05]}  Rc1 {[%clk 0:00:09]} 57. Rd8 {[%clk 0:02:02]}  Rc4 {[%clk 0:00:09]} 58. Kg3 {[%clk 0:02:02]}  Rc3+ {[%clk 0:00:09]} 59. Kh4 {[%clk 0:02:03]}  Rc4 {[%clk 0:00:09]} 60. f5+ {[%clk 0:02:02]}  Kh6 {[%clk 0:00:06]} 61. Rd6 {[%clk 0:01:56]}  Kg7 {[%clk 0:00:06]} 62. Kh5 {[%clk 0:01:56]}  Rc7 {[%clk 0:00:05]} 63. Re6 {[%clk 0:01:54]}  Rb7 {[%clk 0:00:05]} 64. Rc6 {[%clk 0:01:54]}  Ra7 {[%clk 0:00:05]} 65. Kh4 {[%clk 0:01:44]}  Rb7 {[%clk 0:00:05]} 66. Kg3 {[%clk 0:01:45]}  Ra7 {[%clk 0:00:06]} 67. Kf4 {[%clk 0:01:46]}  Ra4+ {[%clk 0:00:05]} 68. Kf3 {[%clk 0:01:46]}  Ra7 {[%clk 0:00:05]} 69. Ke4 {[%clk 0:01:46]}  Ra4+ {[%clk 0:00:05]} 70. Kf3 {[%clk 0:01:44]}  Ra3+ {[%clk 0:00:05]} 71. Kf4 {[%clk 0:01:42]}  Ra4+ {[%clk 0:00:06]} 72. Kg3 {[%clk 0:01:43]}  Ra7 {[%clk 0:00:06]} 73. Kh4 {[%clk 0:01:43]}  Rb7 {[%clk 0:00:06]} 74. g5 {[%clk 0:01:44]}  fxg5+ {[%clk 0:00:06]} 75. Kxg5 {[%clk 0:01:44]}  Kf7 {[%clk 0:00:05]} 76. Rh6 {[%clk 0:01:44]}  Rb1 {[%clk 0:00:05]} 77. Rh7+ {[%clk 0:01:43]}  Kg8 {[%clk 0:00:06]} 78. Ra7 {[%clk 0:01:44]}  Rb6 {[%clk 0:00:06]} 79. f6 {[%clk 0:01:41]}  Rb1 {[%clk 0:00:05]} 80. Ra8+ {[%clk 0:01:35]}  Kf7 {[%clk 0:00:05]} 81. Ra7+ {[%clk 0:01:36]}  Kf8 {[%clk 0:00:05]} 82. Ra8+ {[%clk 0:01:19]}  Kf7 {[%clk 0:00:05]} 83. Ra7+ {[%clk 0:01:20]}  Kf8 {[%clk 0:00:05]} 84. Rg7 {[%clk 0:01:20]}  Rg1+ {[%clk 0:00:05]} 85. Kh6 {[%clk 0:01:19]}  Rh1+ {[%clk 0:00:06]} 86. Kg6 {[%clk 0:01:19]}  Rg1+ {[%clk 0:00:06]} 87. Kh7 {[%clk 0:01:17]}  Rh1+ {[%clk 0:00:06]} 88. Kg6 {[%clk 0:01:17]}  Rg1+ {[%clk 0:00:07]} 89. Kf5 {[%clk 0:01:18]}  Rxg7 {[%clk 0:00:07]} 90. fxg7+ {[%clk 0:01:19]}  Kxg7 {[%clk 0:00:07]} 1/2-1/2


[Site "https://www.chess.com"]